[Event "Early-Titled-Tuesday-Blitz-May-28-2024"]
[Site "Chess.com"]
[Date "2024.05.28"]
[Round "11"]
[White "Naruto75_3"]
[Black "GrotBchess"]
[Result "1/2-1/2"]
[WhiteElo "2424"]
[BlackElo "2569"]
[TimeControl "180+1"]
[EndTime "10:12:48 PDT"]
[Termination "Game drawn - insufficient material"]

1. d4 {[%clk 0:03:00.5]} 1... Nf6 {[%clk 0:02:59.7]} 2. c4 {[%clk 0:02:59.5]}
2... g6 {[%clk 0:03:00.2]} 3. Nc3 {[%clk 0:02:59]} 3... Bg7 {[%clk 0:03:00.2]}
4. Nf3 {[%clk 0:02:58.8]} 4... d6 {[%clk 0:03:00.7]} 5. Bg5 {[%clk 0:02:58.6]}
5... O-O {[%clk 0:03:00.7]} 6. e3 {[%clk 0:02:58.5]} 6... Nbd7 {[%clk
0:02:59.5]} 7. Be2 {[%clk 0:02:58.6]} 7... e5 {[%clk 0:02:55.5]} 8. O-O {[%clk
0:02:57.8]} 8... c6 {[%clk 0:02:55.2]} 9. dxe5 {[%clk 0:02:54.6]} 9... dxe5
{[%clk 0:02:56.1]} 10. Qc2 {[%clk 0:02:53.5]} 10... Qc7 {[%clk 0:02:52.8]} 11.
Rfd1 {[%clk 0:02:52.8]} 11... Nc5 {[%clk 0:02:49.6]} 12. Bh4 {[%clk 0:02:49.4]}
12... Bf5 {[%clk 0:02:47.7]} 13. Qc1 {[%clk 0:02:44.2]} 13... Nce4 {[%clk
0:02:45]} 14. Nxe4 {[%clk 0:02:42.2]} 14... Nxe4 {[%clk 0:02:45.9]} 15. Bd3
{[%clk 0:02:41.6]} 15... a5 {[%clk 0:02:40.3]} 16. h3 {[%clk 0:02:37.6]} 16...
Nd6 {[%clk 0:02:37.2]} 17. c5 {[%clk 0:02:35.5]} 17... Bxd3 {[%clk 0:02:31.5]}
18. cxd6 {[%clk 0:02:34.1]} 18... Qxd6 {[%clk 0:02:31.9]} 19. e4 {[%clk
0:02:32.1]} 19... c5 {[%clk 0:02:25.7]} 20. b3 {[%clk 0:02:27.1]} 20... Qa6
{[%clk 0:02:24.1]} 21. Qxc5 {[%clk 0:02:24.4]} 21... Bxe4 {[%clk 0:02:23.8]} 22.
Nxe5 {[%clk 0:02:23]} 22... Rac8 {[%clk 0:02:23.4]} 23. Qd4 {[%clk 0:02:21.2]}
23... Bc6 {[%clk 0:02:13.5]} 24. Qf4 {[%clk 0:02:11.3]} 24... Bb5 {[%clk
0:02:06.5]} 25. Rac1 {[%clk 0:02:06.3]} 25... Rxc1 {[%clk 0:01:59.3]} 26. Rxc1
{[%clk 0:02:07.1]} 26... Qe6 {[%clk 0:01:56.3]} 27. Bg3 {[%clk 0:02:01]} 27...
Re8 {[%clk 0:01:50.2]} 28. Nf3 {[%clk 0:01:57.9]} 28... h6 {[%clk 0:01:38]} 29.
Nd4 {[%clk 0:01:51.5]} 29... Qd5 {[%clk 0:01:31.9]} 30. Nxb5 {[%clk 0:01:48.3]}
30... Qxb5 {[%clk 0:01:32.8]} 31. Rc7 {[%clk 0:01:46.6]} 31... Qd5 {[%clk
0:01:32.1]} 32. Qc4 {[%clk 0:01:40.7]} 32... Qxc4 {[%clk 0:01:29.5]} 33. bxc4
{[%clk 0:01:41.5]} 33... b6 {[%clk 0:01:27.2]} 34. Rb7 {[%clk 0:01:40.2]} 34...
Bd4 {[%clk 0:01:26.7]} 35. Bc7 {[%clk 0:01:35.9]} 35... Re1+ {[%clk 0:01:24.4]}
36. Kh2 {[%clk 0:01:35]} 36... Bxf2 {[%clk 0:01:21.2]} 37. Bxb6 {[%clk
0:01:34.6]} 37... Rb1 {[%clk 0:01:16.3]} 38. Rb8+ {[%clk 0:01:32.6]} 38... Kh7
{[%clk 0:01:15]} 39. Bc7 {[%clk 0:01:31.8]} 39... Rc1 {[%clk 0:01:13.9]} 40. Rf8
{[%clk 0:01:20.2]} 40... Kg7 {[%clk 0:01:11.3]} 41. Rc8 {[%clk 0:01:19.6]} 41...
g5 {[%clk 0:01:08.6]} 42. Bxa5 {[%clk 0:01:15.7]} 42... h5 {[%clk 0:01:08.3]}
43. Bc7 {[%clk 0:01:12.6]} 43... h4 {[%clk 0:01:04.5]} 44. Be5+ {[%clk
0:01:08.7]} 44... f6 {[%clk 0:01:04.6]} 45. Bb8 {[%clk 0:00:54.6]} 45... Kg6
{[%clk 0:00:58.5]} 46. g3 {[%clk 0:00:50.4]} 46... hxg3+ {[%clk 0:00:52.5]} 47.
Bxg3 {[%clk 0:00:48]} 47... Rc2 {[%clk 0:00:52.5]} 48. Bxf2 {[%clk 0:00:45.3]}
48... Rxf2+ {[%clk 0:00:51.6]} 49. Kg3 {[%clk 0:00:45.7]} 49... Rxa2 {[%clk
0:00:52.1]} 50. c5 {[%clk 0:00:45.7]} 50... Rc2 {[%clk 0:00:52.5]} 51. Rc6
{[%clk 0:00:40.5]} 51... Rc3+ {[%clk 0:00:49.5]} 52. Kg4 {[%clk 0:00:39.7]}
52... Rc4+ {[%clk 0:00:48.1]} 53. Kg3 {[%clk 0:00:39]} 53... Kf5 {[%clk
0:00:48.6]} 54. Rc8 {[%clk 0:00:37.2]} 54... Rc3+ {[%clk 0:00:48.7]} 55. Kg2
{[%clk 0:00:36.3]} 55... Kf4 {[%clk 0:00:49.2]} 56. Ra8 {[%clk 0:00:29.7]} 56...
Rxc5 {[%clk 0:00:48]} 57. Ra4+ {[%clk 0:00:28.5]} 57... Kf5 {[%clk 0:00:48.1]}
58. Kg3 {[%clk 0:00:27]} 58... Rc3+ {[%clk 0:00:47.4]} 59. Kg2 {[%clk
0:00:26.9]} 59... Re3 {[%clk 0:00:47.7]} 60. Ra5+ {[%clk 0:00:25.3]} 60... Kf4
{[%clk 0:00:46.4]} 61. Ra2 {[%clk 0:00:21.1]} 61... f5 {[%clk 0:00:45.8]} 62.
Rf2+ {[%clk 0:00:19.5]} 62... Ke4 {[%clk 0:00:45.9]} 63. Ra2 {[%clk 0:00:19.4]}
63... Rd3 {[%clk 0:00:45.4]} 64. Ra4+ {[%clk 0:00:18.8]} 64... Rd4 {[%clk
0:00:45.6]} 65. Ra8 {[%clk 0:00:18.5]} 65... Rd2+ {[%clk 0:00:39.5]} 66. Kg1
{[%clk 0:00:17.2]} 66... f4 {[%clk 0:00:35.9]} 67. Ra5 {[%clk 0:00:16.3]} 67...
Rd5 {[%clk 0:00:29.5]} 68. Ra3 {[%clk 0:00:15]} 68... Rd3 {[%clk 0:00:28.9]} 69.
Ra5 {[%clk 0:00:13.8]} 69... Rg3+ {[%clk 0:00:22.4]} 70. Kf2 {[%clk 0:00:12.4]}
70... Rxh3 {[%clk 0:00:19.5]} 71. Rxg5 {[%clk 0:00:11.2]} 71... Rh2+ {[%clk
0:00:20.1]} 72. Kf1 {[%clk 0:00:09.7]} 72... Kf3 {[%clk 0:00:19]} 73. Kg1 {[%clk
0:00:09.5]} 73... Ra2 {[%clk 0:00:18.7]} 74. Rb5 {[%clk 0:00:05]} 74... Kg3
{[%clk 0:00:14.6]} 75. Rg5+ {[%clk 0:00:03.8]} 75... Kf3 {[%clk 0:00:14.3]} 76.
Rb5 {[%clk 0:00:03.9]} 76... Ra1+ {[%clk 0:00:14.1]} 77. Kh2 {[%clk 0:00:03.6]}
77... Kf2 {[%clk 0:00:11.1]} 78. Rb2+ {[%clk 0:00:03.4]} 78... Kf1 {[%clk
0:00:10.1]} 79. Rb3 {[%clk 0:00:03.3]} 79... Ra2+ {[%clk 0:00:08]} 80. Kh3
{[%clk 0:00:02.8]} 80... Kf2 {[%clk 0:00:08.6]} 81. Kg4 {[%clk 0:00:02.2]} 81...
Ra4 {[%clk 0:00:07.6]} 82. Rf3+ {[%clk 0:00:02.5]} 82... Ke2 {[%clk 0:00:06.8]}
83. Rxf4 {[%clk 0:00:03.2]} 83... Ra6 {[%clk 0:00:06.9]} 84. Kg3 {[%clk
0:00:03.1]} 84... Rg6+ {[%clk 0:00:07.2]} 85. Rg4 {[%clk 0:00:03.8]} 85... Rf6
{[%clk 0:00:07.2]} 86. Rf4 {[%clk 0:00:04.5]} 86... Re6 {[%clk 0:00:05.9]} 87.
Rg4 {[%clk 0:00:04.7]} 87... Re3+ {[%clk 0:00:05.9]} 88. Kh2 {[%clk 0:00:04.1]}
88... Re6 {[%clk 0:00:06.3]} 89. Rg2+ {[%clk 0:00:04.6]} 89... Kf3 {[%clk
0:00:06.2]} 90. Rg3+ {[%clk 0:00:05.5]} 90... Kf4 {[%clk 0:00:06.4]} 91. Rg2
{[%clk 0:00:06]} 91... Rh6+ {[%clk 0:00:05]} 92. Kg1 {[%clk 0:00:06.3]} 92...
Kf3 {[%clk 0:00:05.6]} 93. Rf2+ {[%clk 0:00:07]} 93... Ke3 {[%clk 0:00:04.6]}
94. Rg2 {[%clk 0:00:07.6]} 94... Ra6 {[%clk 0:00:04.5]} 95. Rg3+ {[%clk
0:00:07.6]} 95... Kf4 {[%clk 0:00:04.3]} 96. Rg2 {[%clk 0:00:08.1]} 96... Ra1+
{[%clk 0:00:03.1]} 97. Kh2 {[%clk 0:00:08]} 97... Kf3 {[%clk 0:00:04]} 98. Rg3+
{[%clk 0:00:06.9]} 98... Kf4 {[%clk 0:00:04.6]} 99. Rg2 {[%clk 0:00:07.3]} 99...
Rf1 {[%clk 0:00:04.7]} 100. Ra2 {[%clk 0:00:06.2]} 100... Rb1 {[%clk 0:00:04.3]}
101. Ra4+ {[%clk 0:00:06.7]} 101... Kf3 {[%clk 0:00:04.8]} 102. Ra3+ {[%clk
0:00:07.3]} 102... Kf2 {[%clk 0:00:04.4]} 103. Ra2+ {[%clk 0:00:07.4]} 103...
Kf3 {[%clk 0:00:04.7]} 104. Ra3+ {[%clk 0:00:07.8]} 104... Kg4 {[%clk
0:00:05.3]} 105. Ra4+ {[%clk 0:00:07.5]} 105... Kg5 {[%clk 0:00:05.3]} 106. Ra5+
{[%clk 0:00:07.5]} 106... Kf4 {[%clk 0:00:05.8]} 107. Ra4+ {[%clk 0:00:07.4]}
107... Ke5 {[%clk 0:00:06.3]} 108. Ra5+ {[%clk 0:00:07.2]} 108... Kd4 {[%clk
0:00:06.9]} 109. Ra4+ {[%clk 0:00:07.6]} 109... Kc5 {[%clk 0:00:07.4]} 110. Ra5+
{[%clk 0:00:07.5]} 110... Rb5 {[%clk 0:00:07.8]} 111. Ra4 {[%clk 0:00:07.5]}
111... Rb2+ {[%clk 0:00:07.6]} 112. Kg3 {[%clk 0:00:06.6]} 112... Kb5 {[%clk
0:00:08.5]} 113. Rf4 {[%clk 0:00:05.6]} 113... Kc5 {[%clk 0:00:08.5]} 114. Rf2
{[%clk 0:00:06.1]} 114... Rb3+ {[%clk 0:00:08.5]} 115. Rf3 {[%clk 0:00:06.7]}
115... Kc4 {[%clk 0:00:08.4]} 116. Rxb3 {[%clk 0:00:06]} 116... Kxb3 {[%clk
0:00:09.3]} 1/2-1/2